fUSD/lending_fUSD_20260107
["ID","MTS","AMOUNT","RATE_DAILY","PERIOD"]
[400626790,1767750641773,-500.0,0.00019973,2]
[400626792,1767750641785,-500.0,0.00019973,2]
[400626795,1767750641796,-500.0,0.00019973,2]
[400626797,1767750641808,-161.49145816,0.00019973,2]
[400626799,1767750641821,-160.54808318,0.00019973,2]
[400626802,1767750641833,-500.0,0.00019973,2]
[400626804,1767750641844,-500.0,0.00019973,2]
[400626806,1767750641855,-164.13748005,0.00019973,2]
[400626808,1767750641867,-500.0,0.00019973,2]
[400626811,1767750641878,-500.0,0.00019973,2]
[400626813,1767750641889,-500.0,0.00019973,2]
[400626815,1767750641901,-500.0,0.00019973,2]
[400626817,1767750641913,-167.34409098,0.00019973,2]
[400626820,1767750641924,-500.0,0.00019973,2]
[400626822,1767750641935,-500.0,0.00019973,2]
[400626824,1767750641946,-500.0,0.00019973,2]
[400626826,1767750641957,-500.0,0.00019973,2]
[400626829,1767750641968,-150.0,0.0002,2]
[400626831,1767750641980,-1463.61091402,0.0002,5]
[400626833,1767750641992,-37267.36681425,0.0002,5]
[400626835,1767750642003,-8300.0,0.0002,4]
[400626838,1767750642015,-370.82306574,0.0002,20]
[400626840,1767750642027,-37721.03672082,0.0002,14]
[400626842,1767750642038,-4571.34107259,0.0002,3]
[400626844,1767750642049,-496.69513219,0.0002,10]
[400626847,1767750642060,-1557.97021985,0.0002,2]
[400626849,1767750642072,-1000.0,0.0002,7]
[400626851,1767750642084,-165.73486965,0.0002,20]
[400626853,1767750642096,-2341.57,0.00020043,2]
[400626856,1767750642107,-307.97,0.00020113,2]
[400626858,1767750642119,-1454.11864465,0.00020164,2]
[400626860,1767750642133,-1007.41904179,0.00020164,2]
[400626863,1767750642144,-2500.0,0.00020164,2]
[400626865,1767750642157,-1240.72622567,0.00020164,2]
[400626867,1767750642168,-2500.0,0.00020164,2]
[400626869,1767750642180,-2896.3,0.00020292,2]
[400626872,1767750642192,-179.76,0.00020321,2]
[400626874,1767750642204,-152.44,0.00020477,2]
[400626876,1767750642217,-170.6952868,0.000205,2]
[400626878,1767750642228,-1000.0,0.00020521,2]
[400626881,1767750642240,-1000.0,0.00020521,2]
[400626883,1767750642252,-515.27642925,0.00020521,2]
[400626885,1767750642263,-1000.0,0.00020521,2]
[400626887,1767750642275,-1000.0,0.00020521,2]
[400626889,1767750642287,-1000.0,0.00020521,2]
[400626891,1767750642299,-286.84842062,0.00020521,2]
[400626893,1767750642310,-1000.0,0.00020521,2]
[400626895,1767750642322,-1000.0,0.00020521,2]
[400626897,1767750642333,-1000.0,0.00020521,2]
[400626899,1767750642345,-1000.0,0.00020521,2]
[400626901,1767750642357,-1000.0,0.00020521,2]
[400626903,1767750642370,-578.02071049,0.00020521,2]
[400626905,1767750642382,-1000.0,0.00020521,2]
[400626907,1767750642393,-501.05787152,0.00020521,2]
[400626909,1767750642406,-1000.94146496,0.00020521,2]
[400626911,1767750642418,-1000.0,0.00020521,2]
[400626913,1767750642430,-1000.0,0.00020521,2]
[400626915,1767750642441,-1000.0,0.00020521,2]
[400626917,1767750642453,-1000.0,0.00020521,2]
[400626919,1767750642466,-1000.0,0.00020521,2]
[400626921,1767750642477,-1000.0,0.00020521,2]
[400626923,1767750642489,-1000.0,0.00020521,2]
[400626925,1767750642500,-690.88377587,0.00020521,2]
[400626927,1767750642512,-1000.0,0.00020521,2]
[400626929,1767750642523,-429.09119552,0.00020521,2]
[400626931,1767750642534,-1000.0,0.00020521,2]
[400626933,1767750642546,-609.94892981,0.00020521,2]
[400626935,1767750642557,-1000.0,0.00020521,2]
[400626938,1767750642568,-1000.0,0.00020521,2]
[400626939,1767750642580,-570.66707455,0.00020521,2]
[400626942,1767750642592,-1000.0,0.00020521,2]
[400626944,1767750642603,-1000.0,0.00020521,2]
[400626946,1767750642614,-398.03125352,0.00020521,2]
[400626948,1767750642625,-1000.0,0.00020521,2]
[400626950,1767750642636,-279.31517583,0.00020521,2]
[400626952,1767750642647,-933.25363423,0.00020521,2]
[400626954,1767750642658,-1000.0,0.00020521,2]
[400626956,1767750642669,-1000.0,0.00020521,2]
[400626957,1767750642680,-1000.0,0.00020521,2]
[400626959,1767750642691,-1000.0,0.00020521,2]
[400626961,1767750642702,-1000.0,0.00020521,2]
[400626963,1767750642713,-1000.0,0.00020521,2]
[400626965,1767750642724,-1005.01775312,0.00020521,2]
[400626967,1767750642735,-1000.0,0.00020521,2]
[400626969,1767750642746,-1000.0,0.00020521,2]
[400626971,1767750642757,-1000.0,0.00020521,2]
[400626973,1767750642767,-1000.0,0.00020521,2]
[400626975,1767750642779,-870.0,0.00020548,2]
[400626977,1767750642789,-250.0,0.00020598,2]
[400626979,1767750642800,-1235.79018489,0.00020712,2]
[400626981,1767750642811,-3000.0,0.00020712,2]
[400626983,1767750642822,-9917.98808771,0.000209,30]
[400626985,1767750642832,-2341.57,0.00020914,2]
[400626987,1767750642843,-150.0,0.00020973,2]
[400626989,1767750642854,-163.81782286,0.00020973,2]
[400626991,1767750642865,-151.0,0.00020987,2]
[400626993,1767750642877,-127519.24258494,0.0002099,2]
[400626995,1767750642888,-20000.0,0.00021,2]
[400626997,1767750642899,-1191.16510258,0.00021,2]
[400626999,1767750642909,-196.61170439,0.00021,2]
[400627001,1767750642919,-160.0,0.00021,7]
[400627003,1767750642930,-350.0,0.00021,2]
[400627006,1767750642940,-1103.41466425,0.00021001,2]
[400627008,1767750642951,-307.97,0.00021027,2]
[400627010,1767750642962,-1503.89366239,0.00021068,2]
[400627012,1767750642973,-1500.0,0.00021068,2]
[400627014,1767750642984,-1500.0,0.00021068,2]
[400627016,1767750642994,-1500.0,0.00021068,2]
[400627018,1767750643005,-1500.0,0.00021068,2]
[400627020,1767750643016,-1500.0,0.00021068,2]
[400627022,1767750643027,-1500.0,0.00021068,2]
[400627024,1767750643038,-525.47376177,0.00021068,2]
[400627026,1767750643049,-1500.0,0.00021068,2]
[400627028,1767750643061,-1507.33238453,0.00021068,2]
[400627030,1767750643072,-1500.0,0.00021068,2]
[400627032,1767750643084,-1500.0,0.00021068,2]
[400627034,1767750643095,-1005.68975855,0.00021068,2]
[400627036,1767750643106,-1500.0,0.00021068,2]
[400627038,1767750643117,-1500.0,0.00021068,2]
[400627040,1767750643129,-1500.0,0.00021068,2]
[400627042,1767750643145,-1500.0,0.00021068,2]
[400627044,1767750643156,-280.94046828,0.00021068,2]
[400627046,1767750643168,-1500.0,0.00021068,2]
[400627048,1767750643179,-507.266222,0.00021068,2]
[400627051,1767750643190,-1500.0,0.00021068,2]
[400627053,1767750643202,-1500.0,0.00021068,2]
[400627055,1767750643214,-1500.0,0.00021068,2]
[400627057,1767750643226,-681.8114728,0.00021068,2]
[400627059,1767750643237,-1500.0,0.00021068,2]
[400627061,1767750643248,-1500.0,0.00021068,2]
[400627063,1767750643260,-1500.0,0.00021068,2]
[400627066,1767750643271,-1269.22657261,0.00021068,2]
[400627069,1767750643282,-1500.0,0.00021068,2]
[400627073,1767750643297,-1500.0,0.00021068,2]
[400627076,1767750643308,-1500.0,0.00021068,2]
[400627079,1767750643320,-1500.0,0.00021068,2]
[400627082,1767750643331,-1500.0,0.00021068,2]
[400627084,1767750643342,-1500.0,0.00021068,2]
[400627087,1767750643353,-1500.0,0.00021068,2]
[400627089,1767750643365,-238.6680603,0.00021084,2]
[400627091,1767750643376,-5625.5928489,0.00021098,2]
[400627093,1767750643387,-155.32,0.00021099,2]
[400627095,1767750643398,-203119.6770951,0.00021176,2]
[400627097,1767750643408,-3500.0,0.0002126,2]
[400627099,1767750643420,-1894.0,0.00021325,2]
[400627101,1767750643430,-1328.28,0.000214,7]
[400627103,1767750643442,-823.0,0.0002143,2]
[400627105,1767750643453,-823.0,0.0002143,2]
[400627107,1767750643463,-57438.65090699,0.000215,2]
[400627109,1767750643474,-221.7670119,0.000215,2]
[400627111,1767750643487,-152.44,0.00021501,2]
[400627113,1767750643498,-150.0,0.00021521,2]
[400627115,1767750643509,-504.6314522,0.00021616,2]
[400627117,1767750643520,-2000.0,0.00021616,2]
[400627119,1767750643531,-2000.0,0.00021616,2]
[400627121,1767750643542,-1756.80557477,0.00021616,2]
[400627123,1767750643553,-2000.0,0.00021616,2]
[400627125,1767750643564,-2000.0,0.00021616,2]
[400627127,1767750643575,-2000.0,0.00021616,2]
[400627129,1767750643586,-630.42266667,0.00021616,2]
[400627131,1767750643597,-502.02787874,0.00021616,2]
[400627133,1767750643610,-1110.9578609,0.00021616,2]
[400627135,1767750643621,-2000.0,0.00021616,2]
[400627137,1767750643632,-926.30074091,0.00021616,2]
[400627139,1767750643644,-878.91784331,0.00021616,2]
[400627141,1767750643655,-353.03322142,0.00021616,2]
[400627143,1767750643667,-2000.0,0.00021616,2]
[400627145,1767750643682,-2000.0,0.00021616,2]
[400627146,1767750643694,-2000.0,0.00021616,2]
[400627147,1767750643706,-513.61651558,0.00021616,2]
[400627148,1767750643718,-2000.0,0.00021616,2]
[400627149,1767750643729,-1949.1289913,0.00021616,2]
[400627150,1767750643741,-2000.0,0.00021616,2]
[400627151,1767750643752,-1972.18144004,0.00021616,2]
[400627152,1767750643764,-983.95227414,0.00021616,2]
[400627153,1767750643775,-2000.0,0.00021616,2]
[400627154,1767750643787,-2000.0,0.00021616,2]
[400627155,1767750643798,-2000.0,0.00021616,2]
[400627156,1767750643810,-2000.0,0.00021616,2]
[400627157,1767750643821,-1000.0,0.00021749,2]
[400627158,1767750643833,-3292.0,0.00021753,2]
[400627161,1767750643844,-168.0,0.00021758,2]
[400627163,1767750643855,-3988.83731948,0.00021808,2]
[400627165,1767750643866,-166.66,0.00021843,2]
[400627167,1767750643877,-45322.1260795,0.00021885,2]
[400627170,1767750643888,-163.097093,0.00021885,2]
[400627172,1767750643899,-153.897465,0.00021885,2]
[400627174,1767750643911,-424.651603,0.00021885,2]
[400627176,1767750643923,-424.651603,0.00021885,2]
[400627179,1767750643934,-424.651603,0.00021885,2]
[400627181,1767750643945,-424.651603,0.00021885,2]
[400627257,1767750644638,-151.748266,0.00021885,2]
[400627262,1767750644674,-1894.0,0.00021892,2]
[400627265,1767750644693,-5000.0,0.00021918,2]
[400627267,1767750644704,-500.0,0.00021918,2]
[400627269,1767750644713,-500.0,0.00021918,2]
[400627271,1767750644723,-500.0,0.00021918,2]
[400627273,1767750644732,-500.0,0.00021918,2]
[400627275,1767750644742,-606.17751992,0.00021918,2]
[400627277,1767750644751,-500.0,0.00021918,2]
[400627279,1767750644760,-500.0,0.00021918,2]
[400627281,1767750644770,-500.0,0.00021918,2]
[400627283,1767750644782,-500.0,0.00021918,2]
[400627285,1767750644791,-500.0,0.00021918,2]
[400627287,1767750644800,-500.0,0.00021918,2]
[400627289,1767750644810,-456.24194666,0.00021918,2]
[400627291,1767750644819,-500.0,0.00021918,2]
[400627293,1767750644828,-500.0,0.00021918,2]
[400627295,1767750644837,-500.0,0.00021918,2]
[400627297,1767750644846,-500.0,0.00021918,2]
[400627299,1767750644855,-500.0,0.00021918,2]
[400627301,1767750644864,-307.97,0.00021941,2]
[400627303,1767750644874,-1894.0,0.00021957,2]
[400627304,1767750644883,-451.02,0.00022,2]
[400627306,1767750644892,-109413.45941096,0.00022,4]
[400627309,1767750644913,-65064.43100631,0.00022,4]
[400627312,1767750644924,-10319.3334292,0.00022,4]
[400627314,1767750644935,-1295.24488642,0.00022,4]
[400627319,1767750644975,-18.7580546,0.00022,4]
[400627330,1767750645066,-500.0,0.00017015,2]
[400627332,1767750645075,-258.45335697,0.00017289,2]
[400627334,1767750645088,-241.54664303,0.00017289,2]
[400627336,1767750645097,-500.0,0.00017563,2]
[400627338,1767750645106,-1751.09,0.00017888,2]
[400627340,1767750645115,-1751.09,0.00018162,2]
[400627342,1767750645124,-212.49693923,0.00022,4]
[400627344,1767750645137,-418.54789703,0.00022,4]
[400627361,1767750645296,-1.7e-07,0.00022,4]
[400627489,1767750646483,-458.7647193,0.00017837,2]
[400627492,1767750646503,-135.60599199,0.00017837,2]
[400627494,1767750646512,-151.0,0.00018,2]
[400627496,1767750646521,-151.0,0.00018,2]
[400627498,1767750646530,-151.0,0.00018,2]
[400627500,1767750646539,-1751.09,0.00018436,2]
[400627502,1767750646548,-1751.09,0.0001871,2]
[400627504,1767750646557,-1751.09,0.00018984,2]
[400627505,1767750646566,-1751.09,0.00019258,2]
[400627508,1767750646575,-151.0,0.00021885,2]
[400627510,1767750646585,-151.0,0.00021885,2]
[400627512,1767750646594,-182001.37443493,0.00022,4]
[400627513,1767750646603,-796.24110571,0.00022,7]
[400627515,1767750646612,-163.53,0.00022,2]
[400627517,1767750646621,-5321.47,0.00022,7]
[400627519,1767750646631,-114794.65,0.00022,2]
[400627521,1767750646640,-1894.0,0.00022007,2]
[400627523,1767750646650,-168.0,0.00022014,2]
[400627525,1767750646659,-150.0,0.00022068,2]
[400627527,1767750646669,-304.11523412,0.000221,2]
[400627529,1767750646678,-1003.12512708,0.00022164,2]
[400627531,1767750646688,-1509.33426218,0.00022164,2]
[400627534,1767750646698,-426.73386812,0.00022164,2]
[400627535,1767750646707,-2500.0,0.00022164,2]
[400627537,1767750646717,-1449.26777224,0.00022164,2]
[400627539,1767750646727,-977.29380593,0.00022164,2]
[400627541,1767750646736,-852.9335528,0.00022164,2]
[400627543,1767750646746,-1166.61604399,0.00022164,2]
[400627545,1767750646755,-1472.80642559,0.00022164,2]
[400627548,1767750646765,-383.76923009,0.00022164,2]
[400627550,1767750646775,-2500.0,0.00022164,2]
[400627551,1767750646784,-2500.0,0.00022164,2]
[400627552,1767750646794,-1180.21889125,0.00022164,2]
[400627553,1767750646803,-2500.0,0.00022164,2]
[400627554,1767750646813,-2500.0,0.00022164,2]
[400627555,1767750646822,-1894.0,0.00022321,2]
[400627556,1767750646831,-1894.0,0.00022344,2]
[400627557,1767750646841,-168.0,0.00022365,2]
[400627558,1767750646850,-1894.0,0.00022387,2]
[400627559,1767750646860,-306.61760845,0.00022434,2]
[400627560,1767750646870,-322.6107,0.00022434,2]
[400627561,1767750646879,-250.0,0.00022434,2]
[400627562,1767750646888,-250.0,0.00022434,2]
[400627564,1767750646901,-151.0,0.00022434,2]
[400627566,1767750646910,-267.67691966,0.00022434,2]
[400627568,1767750646921,-500.0,0.00022434,2]
[400627570,1767750646931,-500.0,0.00022434,2]
[400627572,1767750646940,-500.0,0.00022434,2]
[400627574,1767750646950,-209.40437684,0.00022434,2]
[400627576,1767750646959,-500.0,0.00022434,2]
[400627578,1767750646969,-500.0,0.00022434,2]
[400627580,1767750646978,-578.20924308,0.00022434,2]
[400627582,1767750646988,-500.0,0.00022434,2]
[400627584,1767750646998,-500.0,0.00022434,2]
[400627586,1767750647006,-500.0,0.00022434,2]
[400627588,1767750647015,-500.0,0.00022434,2]
[400627590,1767750647024,-500.0,0.00022434,2]
[400627592,1767750647033,-500.0,0.00022434,2]
[400627594,1767750647042,-500.0,0.00022434,2]
[400627596,1767750647051,-574.12855637,0.00022434,2]
[400627598,1767750647060,-500.0,0.00022434,2]
[400627600,1767750647069,-500.0,0.00022434,2]
[400627602,1767750647078,-500.0,0.00022434,2]
[400627604,1767750647087,-500.0,0.00022434,2]
[400627606,1767750647096,-500.0,0.00022434,2]
[400627608,1767750647106,-500.0,0.00022434,2]
[400627609,1767750647115,-500.0,0.00022434,2]
[400627612,1767750647125,-200.0,0.00022434,2]
[400627613,1767750647136,-500.0,0.00022434,2]
[400627616,1767750647149,-250.0,0.00022434,2]
[400627617,1767750647158,-500.0,0.00022434,2]
[400627619,1767750647167,-500.0,0.00022434,2]
[400627621,1767750647179,-207.4,0.00022434,2]
[400627624,1767750647188,-500.0,0.00022434,2]
[400627625,1767750647197,-250.0,0.00022434,2]
[400627628,1767750647207,-500.0,0.00022434,2]
[400627630,1767750647219,-250.0,0.00022434,2]
[400627632,1767750647228,-500.0,0.00022434,2]
[400627634,1767750647239,-215.0738,0.00022434,2]
[400627636,1767750647248,-250.0,0.00022434,2]
[400627638,1767750647257,-250.0,0.00022434,2]
[400627640,1767750647267,-500.0,0.00022434,2]
[400627642,1767750647276,-223.0315306,0.00022434,2]
[400627644,1767750647286,-500.0,0.00022434,2]
[400627646,1767750647295,-500.0,0.00022434,2]
[400627648,1767750647305,-250.0,0.00022434,2]
[400627650,1767750647315,-231.28369723,0.00022434,2]
[400627652,1767750647324,-250.0,0.00022434,2]
[400627654,1767750647334,-500.0,0.00022434,2]
[400627656,1767750647344,-250.0,0.00022434,2]
[400627658,1767750647355,-239.84119403,0.00022434,2]
[400627660,1767750647364,-500.0,0.00022434,2]
[400627662,1767750647376,-500.0,0.00022434,2]
[400627664,1767750647385,-250.0,0.00022434,2]
[400627666,1767750647394,-250.0,0.00022434,2]
[400627668,1767750647404,-248.71531821,0.00022434,2]
[400627670,1767750647415,-500.0,0.00022434,2]
[400627672,1767750647426,-500.0,0.00022434,2]
[400627674,1767750647435,-250.0,0.00022434,2]
[400627676,1767750647445,-250.0,0.00022434,2]
[400627678,1767750647455,-257.91778498,0.00022434,2]
[400627680,1767750647465,-500.0,0.00022434,2]
[400627682,1767750647474,-500.0,0.00022434,2]
[400627684,1767750647484,-250.0,0.00022434,2]
[400627686,1767750647493,-250.0,0.00022434,2]
[400627688,1767750647503,-267.46074303,0.00022434,2]
[400627690,1767750647512,-500.0,0.00022434,2]
[400627692,1767750647522,-500.0,0.00022434,2]
[400627694,1767750647531,-250.0,0.00022434,2]
[400627696,1767750647540,-250.0,0.00022434,2]
[400627698,1767750647549,-277.35679052,0.00022434,2]
[400627700,1767750647559,-500.0,0.00022434,2]
[400627702,1767750647568,-500.0,0.00022434,2]
[400627704,1767750647577,-250.0,0.00022434,2]
[400627706,1767750647586,-250.0,0.00022434,2]
[400627708,1767750647595,-500.0,0.00022434,2]
[400627710,1767750647605,-500.0,0.00022434,2]
[400627712,1767750647614,-250.0,0.00022434,2]
[400627714,1767750647624,-250.0,0.00022434,2]
[400627716,1767750647633,-500.0,0.00022434,2]
[400627742,1767750647863,-500.0,0.00022434,2]
[400627746,1767750647884,-250.0,0.00022434,2]
[400627748,1767750647894,-500.0,0.00022434,2]
[400627750,1767750647904,-250.0,0.00022434,2]
[400627752,1767750647913,-500.0,0.00022434,2]
[400627754,1767750647923,-500.0,0.00022434,2]
[400627756,1767750647932,-500.0,0.00022434,2]
[400627758,1767750647941,-350.38903525,0.00022434,2]
[400627759,1767750647949,-620.0,0.00022434,2]
[400627761,1767750647960,-500.0,0.00022434,2]
[400627764,1767750647970,-500.0,0.00022434,2]
[400627765,1767750647980,-500.0,0.00022434,2]
[400627767,1767750647989,-500.0,0.00022434,2]
[400627769,1767750647999,-500.0,0.00022434,2]
[400627771,1767750648008,-500.0,0.00022434,2]
[400627773,1767750648019,-500.0,0.00022434,2]
[400627775,1767750648028,-500.0,0.00022434,2]
[400627778,1767750648038,-500.0,0.00022434,2]
[400627780,1767750648048,-500.0,0.00022434,2]
[400627782,1767750648058,-500.0,0.00022434,2]
[400627784,1767750648067,-250.0,0.00022434,2]
[400627785,1767750648077,-250.0,0.00022434,2]
[400627787,1767750648087,-250.0,0.00022434,2]
[400627789,1767750648097,-250.0,0.00022434,2]
[400627791,1767750648107,-250.0,0.00022434,2]
[400627793,1767750648116,-250.0,0.00022434,2]
[400627795,1767750648126,-250.0,0.00022434,2]
[400627797,1767750648135,-250.0,0.00022434,2]
[400627799,1767750648146,-250.0,0.00022434,2]
[400627800,1767750648158,-250.0,0.00022434,2]
[400627803,1767750648168,-250.0,0.00022434,2]
[400627804,1767750648178,-152.44,0.00022525,2]
[400627806,1767750648188,-166.66,0.00022564,2]
[400627809,1767750648198,-164.0,0.000226,60]
[400627811,1767750648208,-235.1971307,0.00022616,2]
[400627812,1767750648218,-800.46216727,0.00022699,2]
[400627815,1767750648229,-2995.60024399,0.00022712,2]
[400627817,1767750648239,-2197.0685392,0.00022712,2]
[400627819,1767750648249,-3000.0,0.00022712,2]
[400627821,1767750648259,-3000.0,0.00022712,2]
[400627823,1767750648269,-845.15020285,0.00022712,2]
[400627825,1767750648279,-6426.11,0.00022814,2]
[400627827,1767750648289,-307.97,0.00022856,2]
[400627829,1767750648298,-1894.0,0.00022864,2]
[400627831,1767750648307,-1894.0,0.00022917,2]
[400627833,1767750648317,-150.0,0.00022973,2]
[400627835,1767750648327,-173.81147581,0.00022982,2]
[400627837,1767750648336,-217.15233878,0.00022982,2]
[400627839,1767750648345,-595.37131296,0.00022982,2]
[400627841,1767750648356,-155.32,0.00022999,2]
[400627843,1767750648366,-501.79028269,0.00022999,2]
[400627845,1767750648375,-634.47337124,0.00023,7]
[400627847,1767750648384,-552.45242198,0.00023,2]
[400627849,1767750648393,-400.0,0.00023,2]
[400627851,1767750648402,-175.61340126,0.00023007,2]
[400627853,1767750648412,-1894.0,0.00023051,2]
[400627855,1767750648422,-1894.0,0.00023156,2]
[400627857,1767750648432,-1894.0,0.00023175,2]
[400627859,1767750648441,-238.6680603,0.00023206,2]
[400627861,1767750648451,-3500.0,0.0002326,2]
[400627863,1767750648461,-1228.37506784,0.0002326,2]
[400627865,1767750648470,-168.0,0.00023275,2]
[400627867,1767750648480,-168.0,0.00023282,2]
[400627869,1767750648489,-166.66,0.00023285,2]
[400627871,1767750648498,-151.0,0.00023297,7]
[400627873,1767750648507,-1894.0,0.00023299,2]
[400627875,1767750648516,-114794.65,0.000233,2]
[400627877,1767750648526,-5625.5928489,0.00023341,2]
[400627879,1767750648535,-1894.0,0.00023392,2]
[400627881,1767750648544,-5321.47,0.000234,7]
[400627883,1767750648554,-1152.0,0.0002342,2]
[400627885,1767750648563,-1152.0,0.0002342,2]
[400627887,1767750648575,-168.0,0.00023456,2]
[400627888,1767750648584,-1894.0,0.00023461,2]
[400627890,1767750648593,-1894.0,0.00023462,2]
[400627892,1767750648602,-1894.0,0.00023498,2]
[400627894,1767750648611,-200.58280261,0.00023521,2]
[400627896,1767750648620,-225.18697532,0.0002353,2]
[400627898,1767750648631,-617.40005154,0.0002353,2]
[400627900,1767750648641,-1000.0,0.00023726,2]
[400627902,1767750648650,-307.97,0.0002377,2]
[400627904,1767750648660,-334.5472959,0.00023803,2]
[400627906,1767750648670,-287.61899177,0.00023803,2]
[400627908,1767750648680,-642.94,0.00023803,2]
[400627910,1767750648690,-4000.0,0.00023808,2]
[400627912,1767750648699,-4609.0,0.00023892,2]
[400627914,1767750648708,-168.0,0.00023896,2]
[400627916,1767750648718,-168.0,0.00023928,2]
[400627918,1767750648727,-13334.25092018,0.00024,2]
[400627920,1767750648737,-1019.54915216,0.00024,2]
[400627922,1767750648746,-10342.15028448,0.00024,14]
[400627924,1767750648756,-878.51595379,0.00024,30]
[400627926,1767750648765,-451.02,0.00024,2]
[400627928,1767750648774,-166.66,0.00024006,2]
[400627930,1767750648784,-399.53,0.00024048,2]
[400627932,1767750648793,-233.51889341,0.00024078,2]
[400627934,1767750648803,-640.24385345,0.00024078,2]
[400627935,1767750648812,-558.08,0.0002418,2]
[400627936,1767750648822,-959.66202197,0.00024356,2]
[400627937,1767750648831,-558.08,0.00024454,2]
[400627938,1767750648841,-114794.65,0.000245,2]
[400627939,1767750648850,-242.15909246,0.00024626,2]
[400627940,1767750648859,-663.93287602,0.00024626,2]
[400627942,1767750648869,-167.3160803,0.0002465,2]
[400627944,1767750648878,-3240.0,0.00024658,2]
[400627946,1767750648888,-1000.0,0.00024658,2]
[400627947,1767750648897,-187.78,0.00024658,2]
[400627949,1767750648906,-522.31803382,0.00024658,5]
[400627951,1767750648915,-156.69541014,0.00024658,4]
[400627953,1767750648924,-307.97,0.00024684,2]
[400627955,1767750648934,-5321.47,0.000247,7]
[400627957,1767750648943,-166.66,0.00024727,2]
[400627959,1767750648952,-238.52,0.00024728,2]
[400627961,1767750648961,-377300.53797,0.000248,3]
[400627963,1767750648972,-424.651603,0.000248,7]
[400627965,1767750648982,-424.651603,0.000248,7]
[400627967,1767750648991,-424.651603,0.000248,7]
[400627970,1767750649001,-424.651603,0.000248,7]
[400627971,1767750649009,-151.0,0.000248,7]
[400627974,1767750649019,-151.0,0.000248,7]
[400627976,1767750649028,-500.0,0.00024899,2]
[400627978,1767750649037,-500.0,0.00024899,2]
[400627980,1767750649046,-41622.1768504,0.000249,3]
[400627982,1767750649055,-3614.59000515,0.00025,2]
[400627984,1767750649064,-7338.70391394,0.00025,5]
[400627986,1767750649073,-170.24883339,0.00025,5]
[400627988,1767750649083,-531.0,0.00025,5]
[400627990,1767750649093,-450.0,0.00025,2]
[400627992,1767750649103,-346.92554585,0.00025172,2]
[400627994,1767750649113,-298.26089446,0.00025172,2]
[400627996,1767750649122,-666.72878,0.00025172,2]
[400627998,1767750649132,-599.60298507,0.00025173,2]
[400628000,1767750649144,-251.11897888,0.00025174,2]
[400628001,1767750649154,-688.49839244,0.00025174,2]
[400628002,1767750649163,-500.0,0.00025397,2]
[400628003,1767750649173,-166.66,0.00025448,2]
[400628004,1767750649184,-1103.41466425,0.00025483,2]
[400628005,1767750649194,-155.32,0.00025506,2]
[400628006,1767750649204,-1613.0,0.00025595,2]
[400628007,1767750649215,-260.4103811,0.00025722,2]
[400628008,1767750649227,-713.97283296,0.00025722,2]
[400628009,1767750649237,-800.46216727,0.00025839,2]
[400628010,1767750649246,-598.69878167,0.0002599,2]
[400628011,1767750649256,-69261.18007185,0.00025999,14]
[400628012,1767750649265,-4506.54564382,0.00026,2]
[400628014,1767750649275,-215.78138952,0.00026,2]
[400628015,1767750649284,-12954.58686663,0.00026,10]
[400628017,1767750649293,-162.42218739,0.00026,2]
[400628018,1767750649303,-155.31739244,0.00026114,2]
[400628019,1767750649312,-114794.65,0.000262,2]
[400628020,1767750649323,-6453.0,0.00026241,2]
[400628021,1767750649332,-270.0455652,0.0002627,2]